[Event "Titled Tuesday Blitz July 4 Early 2023"]
[White "Vasques, Antonio Pedro Freixial"]
[Black "Pandey Srishti"]
[WhiteFideId "1908332"]
[BlackFideId "35093290"]
[WhiteElo "2316"]
[BlackElo "2427"]
[Result "1-0"]
[Round "8"]
[TimeControl "180+2"]
[Date "2023.07.04"]
[WhiteClock "0:01:34"]
[BlackClock "0:01:26"]
[Board "151"]

1. d4 {[%clk 0:03:00]}  Nf6 {[%clk 0:02:59]} 2. Bg5 {[%clk 0:03:00]}  Ne4 {[%clk 0:02:58]} 3. Bf4 {[%clk 0:03:00]}  c5 {[%clk 0:02:59]} 4. f3 {[%clk 0:03:00]}  Nf6 {[%clk 0:02:52]} 5. d5 {[%clk 0:03:01]}  e6 {[%clk 0:02:52]} 6. e4 {[%clk 0:02:53]}  exd5 {[%clk 0:02:51]} 7. exd5 {[%clk 0:02:54]}  Nh5 {[%clk 0:02:50]} 8. Be3 {[%clk 0:02:34]}  Bd6 {[%clk 0:02:41]} 9. Nc3 {[%clk 0:02:31]}  O-O {[%clk 0:02:40]} 10. Qd2 {[%clk 0:02:31]}  Re8 {[%clk 0:02:34]} 11. Nge2 {[%clk 0:02:31]}  a6 {[%clk 0:02:26]} 12. O-O-O {[%clk 0:02:22]}  b5 {[%clk 0:02:24]} 13. Kb1 {[%clk 0:02:23]}  Qa5 {[%clk 0:02:04]} 14. Ne4 {[%clk 0:02:18]}  Qxd2 {[%clk 0:01:55]} 15. Rxd2 {[%clk 0:02:19]}  Bf8 {[%clk 0:01:53]} 16. Bxc5 {[%clk 0:02:18]}  f5 {[%clk 0:01:47]} 17. Bxf8 {[%clk 0:02:17]}  fxe4 {[%clk 0:01:45]} 18. Bd6 {[%clk 0:02:11]}  Bb7 {[%clk 0:01:38]} 19. fxe4 {[%clk 0:02:08]}  Rxe4 {[%clk 0:01:36]} 20. g3 {[%clk 0:01:57]}  Nf6 {[%clk 0:01:34]} 21. Bg2 {[%clk 0:01:56]}  Re8 {[%clk 0:01:34]} 22. Nc3 {[%clk 0:01:45]}  b4 {[%clk 0:01:32]} 23. Bxb4 {[%clk 0:01:44]}  a5 {[%clk 0:01:32]} 24. Bc5 {[%clk 0:01:40]}  Na6 {[%clk 0:01:31]} 25. Bd4 {[%clk 0:01:36]}  Nb4 {[%clk 0:01:31]} 26. Bxf6 {[%clk 0:01:36]}  gxf6 {[%clk 0:01:32]} 27. a3 {[%clk 0:01:36]}  Na6 {[%clk 0:01:30]} 28. Rf1 {[%clk 0:01:36]}  Kg7 {[%clk 0:01:29]} 29. Ne4 {[%clk 0:01:35]}  f5 {[%clk 0:01:26]} 30. Nd6 {[%clk 0:01:34]} 1-0


[Site "https://www.chess.com"]

[Event "Titled Tuesday Blitz July 4 Early 2023"]
[White "Fernandez Hernandez, Gerardo"]
[Black "Weishaeutel, Moritz"]
[WhiteFideId "2207400"]
[BlackFideId "12967300"]
[WhiteElo "2218"]
[BlackElo "2572"]
[Result "0-1"]
[Round "8"]
[TimeControl "180+2"]
[Date "2023.07.04"]
[WhiteClock "0:00:29"]
[BlackClock "0:01:42"]
[Board "155"]

1. e4 {[%clk 0:03:00]}  e5 {[%clk 0:03:00]} 2. Nf3 {[%clk 0:03:00]}  Nf6 {[%clk 0:03:00]} 3. Nxe5 {[%clk 0:02:58]}  Nc6 {[%clk 0:03:01]} 4. Nf3 {[%clk 0:02:51]}  Nxe4 {[%clk 0:03:00]} 5. Bd3 {[%clk 0:02:47]}  d5 {[%clk 0:02:58]} 6. c3 {[%clk 0:02:43]}  Bc5 {[%clk 0:02:56]} 7. O-O {[%clk 0:02:43]}  O-O {[%clk 0:02:53]} 8. Bc2 {[%clk 0:02:39]}  Bg4 {[%clk 0:02:53]} 9. h3 {[%clk 0:02:38]}  Bh5 {[%clk 0:02:52]} 10. d3 {[%clk 0:02:36]}  Nxf2 {[%clk 0:02:32]} 11. Rxf2 {[%clk 0:02:36]}  Bxf2+ {[%clk 0:02:33]} 12. Kxf2 {[%clk 0:02:36]}  Ne5 {[%clk 0:02:34]} 13. g4 {[%clk 0:02:18]}  Bxg4 {[%clk 0:02:24]} 14. hxg4 {[%clk 0:02:13]}  Nxg4+ {[%clk 0:02:25]} 15. Kg2 {[%clk 0:02:08]}  Re8 {[%clk 0:02:21]} 16. Qd2 {[%clk 0:01:38]}  Re3 {[%clk 0:02:11]} 17. Qxe3 {[%clk 0:01:38]}  Nxe3+ {[%clk 0:02:10]} 18. Bxe3 {[%clk 0:01:39]}  Qe7 {[%clk 0:02:01]} 19. Kf2 {[%clk 0:01:29]}  Re8 {[%clk 0:02:00]} 20. Nbd2 {[%clk 0:00:56]}  Qxe3+ {[%clk 0:01:58]} 21. Kg3 {[%clk 0:00:56]}  Re6 {[%clk 0:01:49]} 22. d4 {[%clk 0:00:48]}  g5 {[%clk 0:01:42]} 23. Re1 {[%clk 0:00:41]}  Qf4+ {[%clk 0:01:42]} 24. Kg2 {[%clk 0:00:29]}  Rxe1 {[%clk 0:01:42]} 0-1


[Site "https://www.chess.com"]

[Event "Titled Tuesday Blitz July 4 Early 2023"]
[White "Mendez, Ruddy Antonio"]
[Black "Herzog2012"]
[WhiteFideId "6403387"]
[WhiteElo "2278"]
[BlackElo "2467"]
[Result "0-1"]
[Round "8"]
[TimeControl "180+2"]
[Date "2023.07.04"]
[WhiteClock "0:00:00"]
[BlackClock "0:00:04"]
[Board "157"]

1. d4 {[%clk 0:02:47]}  Nf6 {[%clk 0:02:59]} 2. c4 {[%clk 0:02:47]}  e6 {[%clk 0:02:59]} 3. Nf3 {[%clk 0:02:47]}  b6 {[%clk 0:02:57]} 4. a3 {[%clk 0:02:46]}  Ba6 {[%clk 0:02:54]} 5. Qa4 {[%clk 0:02:45]}  Bb7 {[%clk 0:02:53]} 6. Nc3 {[%clk 0:02:45]}  Be7 {[%clk 0:02:46]} 7. Bg5 {[%clk 0:02:44]}  O-O {[%clk 0:02:44]} 8. e3 {[%clk 0:02:42]}  d6 {[%clk 0:02:35]} 9. Rd1 {[%clk 0:02:41]}  Nbd7 {[%clk 0:02:35]} 10. Be2 {[%clk 0:02:37]}  h6 {[%clk 0:02:33]} 11. Bh4 {[%clk 0:02:34]}  Ne4 {[%clk 0:02:33]} 12. Bxe7 {[%clk 0:02:27]}  Qxe7 {[%clk 0:02:34]} 13. Nxe4 {[%clk 0:02:27]}  Bxe4 {[%clk 0:02:33]} 14. b4 {[%clk 0:02:24]}  a5 {[%clk 0:02:20]} 15. Qb3 {[%clk 0:02:19]}  axb4 {[%clk 0:02:19]} 16. axb4 {[%clk 0:02:20]}  e5 {[%clk 0:02:17]} 17. O-O {[%clk 0:02:15]}  Ra7 {[%clk 0:01:56]} 18. Ra1 {[%clk 0:02:13]}  Rfa8 {[%clk 0:01:54]} 19. Qb2 {[%clk 0:02:13]}  Rxa1 {[%clk 0:01:51]} 20. Rxa1 {[%clk 0:02:13]}  Rxa1+ {[%clk 0:01:51]} 21. Qxa1 {[%clk 0:02:14]}  Bxf3 {[%clk 0:01:49]} 22. Bxf3 {[%clk 0:02:14]}  exd4 {[%clk 0:01:49]} 23. exd4 {[%clk 0:02:10]}  g6 {[%clk 0:01:45]} 24. g3 {[%clk 0:02:10]}  Qf6 {[%clk 0:01:40]} 25. Kg2 {[%clk 0:02:09]}  Kg7 {[%clk 0:01:27]} 26. Qa4 {[%clk 0:02:01]}  Qe7 {[%clk 0:01:22]} 27. Qc6 {[%clk 0:02:00]}  Nf8 {[%clk 0:01:18]} 28. Bd5 {[%clk 0:01:33]}  g5 {[%clk 0:01:04]} 29. Bf3 {[%clk 0:01:01]}  Ne6 {[%clk 0:01:00]} 30. Qe4 {[%clk 0:00:53]}  Qf6 {[%clk 0:01:00]} 31. d5 {[%clk 0:00:45]}  Nf8 {[%clk 0:00:51]} 32. Bh5 {[%clk 0:00:42]}  Nd7 {[%clk 0:00:46]} 33. f4 {[%clk 0:00:41]}  gxf4 {[%clk 0:00:42]} 34. Qxf4 {[%clk 0:00:40]}  Qxf4 {[%clk 0:00:39]} 35. gxf4 {[%clk 0:00:41]}  Kf6 {[%clk 0:00:28]} 36. Bf3 {[%clk 0:00:41]}  Nf8 {[%clk 0:00:27]} 37. Be4 {[%clk 0:00:38]}  Ng6 {[%clk 0:00:16]} 38. Kg3 {[%clk 0:00:36]}  Ne7 {[%clk 0:00:14]} 39. Kg4 {[%clk 0:00:35]}  Kg7 {[%clk 0:00:12]} 40. Kh5 {[%clk 0:00:33]}  Ng8 {[%clk 0:00:12]} 41. Bf3 {[%clk 0:00:31]}  Nf6+ {[%clk 0:00:11]} 42. Kh4 {[%clk 0:00:31]}  Kg6 {[%clk 0:00:12]} 43. Kg3 {[%clk 0:00:25]}  Kf5 {[%clk 0:00:10]} 44. h3 {[%clk 0:00:22]}  Ne4+ {[%clk 0:00:05]} 45. Bxe4+ {[%clk 0:00:18]}  Kxe4 {[%clk 0:00:06]} 46. Kg4 {[%clk 0:00:18]}  f5+ {[%clk 0:00:04]} 47. Kh5 {[%clk 0:00:18]}  Kxf4 {[%clk 0:00:04]} 48. Kxh6 {[%clk 0:00:18]}  Kg3 {[%clk 0:00:05]} 49. Kg5 {[%clk 0:00:18]}  f4 {[%clk 0:00:05]} 50. h4 {[%clk 0:00:18]}  f3 {[%clk 0:00:06]} 51. h5 {[%clk 0:00:19]}  f2 {[%clk 0:00:06]} 52. h6 {[%clk 0:00:20]}  f1=Q {[%clk 0:00:06]} 53. h7 {[%clk 0:00:21]}  Qf8 {[%clk 0:00:07]} 54. Kg6 {[%clk 0:00:19]}  Kg4 {[%clk 0:00:07]} 55. b5 {[%clk 0:00:16]}  Qe8+ {[%clk 0:00:06]} 56. Kg7 {[%clk 0:00:16]}  Kg5 {[%clk 0:00:04]} 57. h8=Q {[%clk 0:00:15]}  Qe7+ {[%clk 0:00:04]} 58. Kg8 {[%clk 0:00:00]}  Kg6 {[%clk 0:00:04]} 0-1


[Site "https://www.chess.com"]

[Event "Titled Tuesday Blitz July 4 Early 2023"]
[White "Modric, Nesa"]
[Black "Buscar, Michael"]
[WhiteFideId "922579"]
[BlackFideId "2603616"]
[WhiteElo "2250"]
[BlackElo "2377"]
[Result "1-0"]
[Round "8"]
[TimeControl "180+2"]
[Date "2023.07.04"]
[WhiteClock "0:00:24"]
[BlackClock "0:00:13"]
[Board "161"]

1. d4 {[%clk 0:03:00]}  d5 {[%clk 0:02:57]} 2. Nf3 {[%clk 0:03:00]}  Nf6 {[%clk 0:02:54]} 3. Bg5 {[%clk 0:03:00]}  Bg4 {[%clk 0:02:45]} 4. Bxf6 {[%clk 0:02:57]}  gxf6 {[%clk 0:02:41]} 5. Nbd2 {[%clk 0:02:52]}  e6 {[%clk 0:02:22]} 6. e3 {[%clk 0:02:52]}  Nd7 {[%clk 0:02:05]} 7. Be2 {[%clk 0:02:51]}  c6 {[%clk 0:01:54]} 8. c3 {[%clk 0:02:48]}  Rg8 {[%clk 0:01:53]} 9. h3 {[%clk 0:02:43]}  Bh5 {[%clk 0:01:52]} 10. O-O {[%clk 0:02:43]}  Bd6 {[%clk 0:01:51]} 11. c4 {[%clk 0:02:33]}  Qe7 {[%clk 0:01:39]} 12. Qb3 {[%clk 0:02:24]}  O-O-O {[%clk 0:01:37]} 13. cxd5 {[%clk 0:02:16]}  exd5 {[%clk 0:01:35]} 14. Rac1 {[%clk 0:02:15]}  Bc7 {[%clk 0:01:33]} 15. Rxc6 {[%clk 0:02:07]}  Nb6 {[%clk 0:01:20]} 16. Rc3 {[%clk 0:01:52]}  Qd6 {[%clk 0:01:17]} 17. Rfc1 {[%clk 0:01:47]}  Rd7 {[%clk 0:01:17]} 18. Bb5 {[%clk 0:01:42]}  Re7 {[%clk 0:01:15]} 19. Qc2 {[%clk 0:01:23]}  Bg6 {[%clk 0:01:10]} 20. Bd3 {[%clk 0:01:22]}  Kb8 {[%clk 0:00:57]} 21. a4 {[%clk 0:01:15]}  Bxd3 {[%clk 0:00:54]} 22. Rxd3 {[%clk 0:01:05]}  f5 {[%clk 0:00:52]} 23. a5 {[%clk 0:01:02]}  Qg6 {[%clk 0:00:51]} 24. Ne1 {[%clk 0:00:49]}  Nc8 {[%clk 0:00:41]} 25. Rc3 {[%clk 0:00:45]}  Qd6 {[%clk 0:00:32]} 26. Ndf3 {[%clk 0:00:41]}  f4 {[%clk 0:00:19]} 27. exf4 {[%clk 0:00:33]}  Qxf4 {[%clk 0:00:19]} 28. Ne5 {[%clk 0:00:29]}  Qg5 {[%clk 0:00:13]} 29. Rxc7 {[%clk 0:00:24]} 1-0


[Site "https://www.chess.com"]

[Event "Titled Tuesday Blitz July 4 Early 2023"]
[White "Slavin, Alexey"]
[Black "CarolinaLujan"]
[WhiteFideId "24104388"]
[WhiteElo "2366"]
[BlackElo "2249"]
[Result "1/2-1/2"]
[Round "8"]
[TimeControl "180+2"]
[Date "2023.07.04"]
[WhiteClock "0:00:06"]
[BlackClock "0:00:09"]
[Board "162"]

1. e4 {[%clk 0:02:58]}  c5 {[%clk 0:02:58]} 2. g3 {[%clk 0:02:58]}  Nc6 {[%clk 0:02:58]} 3. Bg2 {[%clk 0:02:58]}  g6 {[%clk 0:02:58]} 4. Nc3 {[%clk 0:02:56]}  Bg7 {[%clk 0:02:59]} 5. Nge2 {[%clk 0:02:56]}  d6 {[%clk 0:02:59]} 6. a3 {[%clk 0:02:56]}  Nf6 {[%clk 0:02:55]} 7. O-O {[%clk 0:02:56]}  O-O {[%clk 0:02:55]} 8. Rb1 {[%clk 0:02:57]}  a5 {[%clk 0:02:35]} 9. Nb5 {[%clk 0:02:56]}  a4 {[%clk 0:02:34]} 10. c4 {[%clk 0:02:54]}  Bg4 {[%clk 0:02:29]} 11. h3 {[%clk 0:02:54]}  Be6 {[%clk 0:02:28]} 12. d3 {[%clk 0:02:54]}  Qc8 {[%clk 0:02:24]} 13. Nf4 {[%clk 0:02:53]}  Bd7 {[%clk 0:02:24]} 14. Kh2 {[%clk 0:02:53]}  Na5 {[%clk 0:02:16]} 15. Qxa4 {[%clk 0:02:45]}  h5 {[%clk 0:01:52]} 16. Qd1 {[%clk 0:02:39]}  h4 {[%clk 0:01:50]} 17. g4 {[%clk 0:02:38]}  Nh7 {[%clk 0:01:29]} 18. b4 {[%clk 0:02:36]}  cxb4 {[%clk 0:01:27]} 19. axb4 {[%clk 0:02:35]}  Nc6 {[%clk 0:01:27]} 20. Nd5 {[%clk 0:02:33]}  Ra6 {[%clk 0:01:17]} 21. f4 {[%clk 0:02:32]}  e6 {[%clk 0:01:15]} 22. Ne3 {[%clk 0:02:03]}  Nd4 {[%clk 0:01:15]} 23. Nxd4 {[%clk 0:01:55]}  Bxd4 {[%clk 0:01:15]} 24. Qe1 {[%clk 0:01:47]}  Ra2 {[%clk 0:01:13]} 25. Qxh4 {[%clk 0:01:46]}  b5 {[%clk 0:00:39]} 26. Rf2 {[%clk 0:01:37]}  Rxf2 {[%clk 0:00:33]} 27. Qxf2 {[%clk 0:01:37]}  bxc4 {[%clk 0:00:34]} 28. dxc4 {[%clk 0:01:36]}  g5 {[%clk 0:00:32]} 29. f5 {[%clk 0:01:29]}  Be5+ {[%clk 0:00:32]} 30. Kh1 {[%clk 0:01:28]}  d5 {[%clk 0:00:32]} 31. cxd5 {[%clk 0:01:17]}  Nf6 {[%clk 0:00:32]} 32. Bb2 {[%clk 0:01:13]}  Qb8 {[%clk 0:00:31]} 33. fxe6 {[%clk 0:01:06]}  fxe6 {[%clk 0:00:31]} 34. Rf1 {[%clk 0:00:59]}  Bf4 {[%clk 0:00:20]} 35. dxe6 {[%clk 0:00:45]}  Bxe6 {[%clk 0:00:20]} 36. Nd5 {[%clk 0:00:33]}  Nxg4 {[%clk 0:00:18]} 37. hxg4 {[%clk 0:00:30]}  Qb7 {[%clk 0:00:18]} 38. Qd4 {[%clk 0:00:23]}  Qh7+ {[%clk 0:00:18]} 39. Kg1 {[%clk 0:00:23]}  Qh2+ {[%clk 0:00:16]} 40. Kf2 {[%clk 0:00:23]}  Qg3+ {[%clk 0:00:14]} 41. Ke2 {[%clk 0:00:21]}  Bxg4+ {[%clk 0:00:12]} 42. Bf3 {[%clk 0:00:20]}  Qg2+ {[%clk 0:00:10]} 43. Rf2 {[%clk 0:00:17]}  Bxf3+ {[%clk 0:00:10]} 44. Kd3 {[%clk 0:00:15]}  Bxe4+ {[%clk 0:00:09]} 45. Kc4 {[%clk 0:00:13]}  Bxd5+ {[%clk 0:00:08]} 46. Qxd5+ {[%clk 0:00:12]}  Qxd5+ {[%clk 0:00:06]} 47. Kxd5 {[%clk 0:00:13]}  Rb8 {[%clk 0:00:06]} 48. Bc3 {[%clk 0:00:12]}  Rb5+ {[%clk 0:00:06]} 49. Kc4 {[%clk 0:00:12]}  Rb8 {[%clk 0:00:06]} 50. Rg2 {[%clk 0:00:10]}  Kf7 {[%clk 0:00:06]} 51. Bd4 {[%clk 0:00:10]}  Ke6 {[%clk 0:00:07]} 52. Bc5 {[%clk 0:00:11]}  Kf5 {[%clk 0:00:07]} 53. b5 {[%clk 0:00:10]}  g4 {[%clk 0:00:08]} 54. b6 {[%clk 0:00:11]}  g3 {[%clk 0:00:08]} 55. Kb5 {[%clk 0:00:10]}  Kg4 {[%clk 0:00:09]} 56. Kc6 {[%clk 0:00:09]}  Kh3 {[%clk 0:00:09]} 57. Rg1 {[%clk 0:00:09]}  g2 {[%clk 0:00:09]} 58. b7 {[%clk 0:00:08]}  Kh2 {[%clk 0:00:09]} 59. Kb6 {[%clk 0:00:08]}  Rg8 {[%clk 0:00:08]} 60. Ka7 {[%clk 0:00:08]}  Bb8+ {[%clk 0:00:08]} 61. Ka6 {[%clk 0:00:07]}  Rg6+ {[%clk 0:00:08]} 62. Kb5 {[%clk 0:00:07]}  Rg7 {[%clk 0:00:08]} 63. Kc6 {[%clk 0:00:07]}  Rg6+ {[%clk 0:00:09]} 64. Kb5 {[%clk 0:00:07]}  Bc7 {[%clk 0:00:08]} 65. Rb1 {[%clk 0:00:05]}  g1=Q {[%clk 0:00:07]} 66. Bxg1+ {[%clk 0:00:04]}  Rxg1 {[%clk 0:00:07]} 67. Rxg1 {[%clk 0:00:04]}  Kxg1 {[%clk 0:00:08]} 68. Kc6 {[%clk 0:00:04]}  Bb8 {[%clk 0:00:08]} 69. Kd7 {[%clk 0:00:05]}  Bg3 {[%clk 0:00:08]} 70. Kc8 {[%clk 0:00:06]}  Be5 {[%clk 0:00:08]} 71. b8=Q {[%clk 0:00:06]}  Bxb8 {[%clk 0:00:09]} 1/2-1/2


[Site "https://www.chess.com"]

[Event "Titled Tuesday Blitz July 4 Early 2023"]
[White "Warchol, Kamil"]
[Black "Sovetbekova, Nurai"]
[WhiteFideId "21858241"]
[BlackFideId "13801910"]
[WhiteElo "2239"]
[BlackElo "2346"]
[Result "1/2-1/2"]
[Round "8"]
[TimeControl "180+2"]
[Date "2023.07.04"]
[WhiteClock "0:00:14"]
[BlackClock "0:00:04"]
[Board "165"]

1. e4 {[%clk 0:03:00]}  c5 {[%clk 0:02:59]} 2. Nf3 {[%clk 0:02:58]}  Nc6 {[%clk 0:02:59]} 3. Bb5 {[%clk 0:02:57]}  e5 {[%clk 0:02:57]} 4. O-O {[%clk 0:02:22]}  Bd6 {[%clk 0:02:54]} 5. Na3 {[%clk 0:02:10]}  a6 {[%clk 0:02:20]} 6. Nc4 {[%clk 0:02:05]}  Qc7 {[%clk 0:02:14]} 7. Bxc6 {[%clk 0:01:55]}  dxc6 {[%clk 0:02:13]} 8. h3 {[%clk 0:01:41]}  Nf6 {[%clk 0:02:11]} 9. d3 {[%clk 0:01:36]}  O-O {[%clk 0:02:09]} 10. Bg5 {[%clk 0:01:29]}  Nd7 {[%clk 0:01:56]} 11. Bh4 {[%clk 0:01:20]}  b5 {[%clk 0:01:54]} 12. Ne3 {[%clk 0:01:11]}  Nb6 {[%clk 0:01:50]} 13. c3 {[%clk 0:01:05]}  Be6 {[%clk 0:01:45]} 14. d4 {[%clk 0:01:02]}  cxd4 {[%clk 0:01:43]} 15. cxd4 {[%clk 0:01:01]}  exd4 {[%clk 0:01:27]} 16. Nxd4 {[%clk 0:00:54]}  Bc4 {[%clk 0:01:27]} 17. Nxc4 {[%clk 0:00:45]}  Nxc4 {[%clk 0:01:26]} 18. b3 {[%clk 0:00:44]}  Ne5 {[%clk 0:01:16]} 19. Rc1 {[%clk 0:00:43]}  c5 {[%clk 0:01:11]} 20. Nf5 {[%clk 0:00:40]}  Rad8 {[%clk 0:00:48]} 21. Bxd8 {[%clk 0:00:34]}  Rxd8 {[%clk 0:00:48]} 22. Nxd6 {[%clk 0:00:28]}  Rxd6 {[%clk 0:00:47]} 23. Qc2 {[%clk 0:00:29]}  c4 {[%clk 0:00:41]} 24. bxc4 {[%clk 0:00:29]}  Nxc4 {[%clk 0:00:41]} 25. Rfd1 {[%clk 0:00:28]}  Rg6 {[%clk 0:00:40]} 26. Qd3 {[%clk 0:00:27]}  Kf8 {[%clk 0:00:25]} 27. a4 {[%clk 0:00:25]}  Rc6 {[%clk 0:00:15]} 28. axb5 {[%clk 0:00:24]}  axb5 {[%clk 0:00:15]} 29. Qd5 {[%clk 0:00:23]}  Qb6 {[%clk 0:00:10]} 30. Rb1 {[%clk 0:00:17]}  b4 {[%clk 0:00:08]} 31. Qd8+ {[%clk 0:00:16]}  Qxd8 {[%clk 0:00:07]} 32. Rxd8+ {[%clk 0:00:17]}  Ke7 {[%clk 0:00:08]} 33. Rb8 {[%clk 0:00:18]}  Nd2 {[%clk 0:00:05]} 34. R1xb4 {[%clk 0:00:17]}  Rc1+ {[%clk 0:00:05]} 35. Kh2 {[%clk 0:00:17]}  Nf1+ {[%clk 0:00:06]} 36. Kg1 {[%clk 0:00:15]}  Ne3+ {[%clk 0:00:04]} 37. Kh2 {[%clk 0:00:14]}  Nf1+ {[%clk 0:00:04]} 38. Kh1 {[%clk 0:00:15]}  Ng3+ {[%clk 0:00:03]} 39. Kh2 {[%clk 0:00:14]}  Nf1+ {[%clk 0:00:04]} 1/2-1/2


[Site "https://www.chess.com"]

[Event "Titled Tuesday Blitz July 4 Early 2023"]
[White "Korpics, Zsolt"]
[Black "Mishra, Manoj"]
[WhiteFideId "705241"]
[BlackFideId "5006007"]
[WhiteElo "2346"]
[BlackElo "2214"]
[Result "1-0"]
[Round "8"]
[TimeControl "180+2"]
[Date "2023.07.04"]
[WhiteClock "0:00:46"]
[BlackClock "0:00:00"]
[Board "166"]

1. e4 {[%clk 0:03:00]}  d6 {[%clk 0:02:49]} 2. d4 {[%clk 0:03:00]}  Nf6 {[%clk 0:02:49]} 3. Nc3 {[%clk 0:03:00]}  Nbd7 {[%clk 0:02:48]} 4. g4 {[%clk 0:02:58]}  h6 {[%clk 0:02:44]} 5. Be3 {[%clk 0:02:56]}  e5 {[%clk 0:02:44]} 6. f3 {[%clk 0:02:57]}  Be7 {[%clk 0:02:39]} 7. Qd2 {[%clk 0:02:56]}  c6 {[%clk 0:02:38]} 8. O-O-O {[%clk 0:02:55]}  Qa5 {[%clk 0:02:30]} 9. Nge2 {[%clk 0:02:53]}  b5 {[%clk 0:02:29]} 10. Ng3 {[%clk 0:02:42]}  b4 {[%clk 0:02:23]} 11. Nb1 {[%clk 0:02:42]}  Qxa2 {[%clk 0:02:15]} 12. Nf5 {[%clk 0:02:40]}  a5 {[%clk 0:01:36]} 13. Nxe7 {[%clk 0:02:07]}  Kxe7 {[%clk 0:01:33]} 14. dxe5 {[%clk 0:02:07]}  dxe5 {[%clk 0:01:33]} 15. Qd6+ {[%clk 0:02:06]}  Ke8 {[%clk 0:01:33]} 16. Qxc6 {[%clk 0:02:04]}  Rb8 {[%clk 0:01:24]} 17. Bc4 {[%clk 0:02:02]}  Qa1 {[%clk 0:01:09]} 18. Ba7 {[%clk 0:02:01]}  Bb7 {[%clk 0:01:05]} 19. Qb5 {[%clk 0:02:00]}  Bxe4 {[%clk 0:00:49]} 20. Bxb8 {[%clk 0:01:58]}  Bxf3 {[%clk 0:00:40]} 21. Rhe1 {[%clk 0:01:00]}  Bxd1 {[%clk 0:00:27]} 22. Bd6 {[%clk 0:01:01]}  Bxg4 {[%clk 0:00:21]} 23. Rxe5+ {[%clk 0:00:58]}  Be6 {[%clk 0:00:20]} 24. Rxe6+ {[%clk 0:00:47]}  fxe6 {[%clk 0:00:21]} 25. Bxe6 {[%clk 0:00:47]}  b3 {[%clk 0:00:00]} 26. Qc6 {[%clk 0:00:46]} 1-0


[Site "https://www.chess.com"]

[Event "Titled Tuesday Blitz July 4 Early 2023"]
[White "Dwilewicz, Katarzyna"]
[Black "Schachpanda_Youtube"]
[WhiteFideId "1148486"]
[WhiteElo "2334"]
[BlackElo "2197"]
[Result "0-1"]
[Round "8"]
[TimeControl "180+2"]
[Date "2023.07.04"]
[WhiteClock "0:00:33"]
[BlackClock "0:00:36"]
[Board "167"]

1. e4 {[%clk 0:03:00]}  d6 {[%clk 0:02:59]} 2. d4 {[%clk 0:03:00]}  Nf6 {[%clk 0:02:59]} 3. Nc3 {[%clk 0:03:00]}  g6 {[%clk 0:03:00]} 4. f4 {[%clk 0:03:00]}  Bg7 {[%clk 0:02:59]} 5. Nf3 {[%clk 0:03:01]}  c5 {[%clk 0:02:59]} 6. d5 {[%clk 0:02:59]}  O-O {[%clk 0:02:59]} 7. a4 {[%clk 0:02:53]}  e6 {[%clk 0:02:55]} 8. dxe6 {[%clk 0:02:51]}  Bxe6 {[%clk 0:02:55]} 9. Be3 {[%clk 0:02:39]}  Nc6 {[%clk 0:02:49]} 10. Bb5 {[%clk 0:02:32]}  Ng4 {[%clk 0:02:41]} 11. Bg1 {[%clk 0:02:29]}  d5 {[%clk 0:02:24]} 12. exd5 {[%clk 0:02:24]}  Bxc3+ {[%clk 0:02:23]} 13. bxc3 {[%clk 0:02:22]}  Bxd5 {[%clk 0:02:23]} 14. Bxc5 {[%clk 0:01:48]}  Re8+ {[%clk 0:02:21]} 15. Kf1 {[%clk 0:01:46]}  b6 {[%clk 0:02:08]} 16. Bf2 {[%clk 0:01:40]}  Ne3+ {[%clk 0:01:59]} 17. Bxe3 {[%clk 0:01:40]}  Rxe3 {[%clk 0:02:00]} 18. Nd4 {[%clk 0:01:09]}  Qf6 {[%clk 0:01:18]} 19. f5 {[%clk 0:00:57]}  Nxd4 {[%clk 0:01:13]} 20. Qxd4 {[%clk 0:00:56]}  Qxf5+ {[%clk 0:01:12]} 21. Kg1 {[%clk 0:00:56]}  Qg5 {[%clk 0:00:49]} 22. Bf1 {[%clk 0:00:50]}  Rae8 {[%clk 0:00:44]} 23. Rd1 {[%clk 0:00:41]}  Re1 {[%clk 0:00:37]} 24. h4 {[%clk 0:00:33]}  Qxg2# {[%clk 0:00:36]} 0-1


[Site "https://www.chess.com"]

[Event "Titled Tuesday Blitz July 4 Early 2023"]
[White "Shapiro, Daniel"]
[Black "Feliz Dotel, Dewar Bienvenido"]
[WhiteFideId "2001780"]
[BlackFideId "6402801"]
[WhiteElo "2326"]
[BlackElo "2172"]
[Result "1-0"]
[Round "8"]
[TimeControl "180+2"]
[Date "2023.07.04"]
[WhiteClock "0:00:52"]
[BlackClock "0:00:04"]
[Board "169"]

1. d4 {[%clk 0:03:00]}  d5 {[%clk 0:02:58]} 2. c4 {[%clk 0:03:00]}  e6 {[%clk 0:02:58]} 3. Nf3 {[%clk 0:03:00]}  c5 {[%clk 0:02:58]} 4. cxd5 {[%clk 0:02:59]}  exd5 {[%clk 0:02:56]} 5. g3 {[%clk 0:02:59]}  Nc6 {[%clk 0:02:55]} 6. Bg2 {[%clk 0:02:59]}  Nf6 {[%clk 0:02:55]} 7. Nc3 {[%clk 0:02:58]}  Be7 {[%clk 0:02:52]} 8. O-O {[%clk 0:02:56]}  c4 {[%clk 0:02:52]} 9. Ne5 {[%clk 0:02:44]}  O-O {[%clk 0:02:43]} 10. f4 {[%clk 0:02:41]}  a6 {[%clk 0:02:31]} 11. b3 {[%clk 0:02:32]}  cxb3 {[%clk 0:02:19]} 12. axb3 {[%clk 0:02:30]}  Qc7 {[%clk 0:02:19]} 13. Nxd5 {[%clk 0:02:02]}  Nxd5 {[%clk 0:02:14]} 14. Bxd5 {[%clk 0:02:03]}  Nxd4 {[%clk 0:02:09]} 15. Be3 {[%clk 0:01:45]}  Nf5 {[%clk 0:02:04]} 16. Bf2 {[%clk 0:01:41]}  Be6 {[%clk 0:01:43]} 17. Bxe6 {[%clk 0:01:35]}  fxe6 {[%clk 0:01:44]} 18. Rc1 {[%clk 0:01:23]}  Qa5 {[%clk 0:01:35]} 19. Qd7 {[%clk 0:01:10]}  b5 {[%clk 0:01:10]} 20. Qxe6+ {[%clk 0:01:08]}  Kh8 {[%clk 0:01:09]} 21. Nf7+ {[%clk 0:01:08]}  Rxf7 {[%clk 0:01:01]} 22. Qxf7 {[%clk 0:01:08]}  Rf8 {[%clk 0:01:01]} 23. Qe6 {[%clk 0:01:06]}  Qb4 {[%clk 0:00:11]} 24. Rfd1 {[%clk 0:00:55]}  h6 {[%clk 0:00:10]} 25. e4 {[%clk 0:00:53]}  Nd6 {[%clk 0:00:04]} 26. Qxe7 {[%clk 0:00:52]} 1-0


[Site "https://www.chess.com"]